Cogmind - Beta 16.1 @@@ ROGUE MODE // 2026.03.26 @ 11:23:00 Player: Xintrosi Result: Destroyed by Y-72 Warden with Quantum Rifle Performance ------------- Evolutions (5) 2500 Regions Visited (19) 3800 Robots Destroyed (341) 1705 Value Destroyed (14341) 14341 Prototype IDs (28) 560 Alien Tech Used (0) 0 Bonus (11154) 11154 TOTAL SCORE: 34060 Bonus ------- Triggered High Security 500 High Alert Combat Kills 7337 Follower Combat Kills 2245 Entered Garrisons 400 Used RIF Installer 1000 Met Data Miner 300 Friendly Fire -628 Cogmind --------- Core Integrity 0/1000 Matter 11/300 Energy 80/100 System Corruption 9% Temperature Cool (18) Movement Core (400) Ox7 Location -5/Archives Parts ------- > --- POWER (2) -------- (None) > --- PROPULSION (4) --- (None) > --- UTILITY (7) ------ Large Storage Unit > --- WEAPON (4) ------- Heavy Mace > --- INVENTORY (15) --- Advanced Heat Sink Improved Kinecellerator Peak State ------------ > --- POWER ------------ Neutrino Core Antimatter-Neutrino Reactor > --- PROPULSION ------- Flying NPT-VTOL Exoskeleton > --- UTILITY ---------- Armored Scrap Engine Improved Cryofiber Web Advanced Heat Sink Large Storage Unit Improved Weapon Cycler Improved Medium Armor Plating > --- WEAPON ----------- Hvy. Kinetic Wave Construct/C > --- INVENTORY -------- Armored Huge Wheel Improved Kinecellerator Improved Medium Armor Plating Beamcaster Wave Gun Wave Gun Wave Gun KE Penetrator KE Penetrator KE Penetrator Bore Cannon Scatter Rocket Array Heavy Mace [Rating: 102] Favorites ----------- Power Constructs Engine Light Ion Engine Power Core Neutrino Core Reactor Constructs Propulsion Constructs Treads Light Treads Leg Aluminum Leg Wheel Armored Huge Wheel Hover Unit Airjet Flight Unit Constructs Utility Armored Scrap Engine Device Armored Scrap Engine Storage Medium Storage Unit Processor Improved Signal Interpreter Protection Improved Medium Armor Plating Weapon Constructs Energy Gun Beamcaster Energy Cannon Constructs Ballistic Gun Light Assault Rifle Ballistic Cannon Mini Assault Cannon Launcher Scatter Rocket Array Impact Weapon Power Maul Slashing Weapon Power Sword Build | -11 -10 -9 -9 -9 -7 -7 -7 -7 -6 -6 -6 -6 -6 -6 -6 -5 -5 -5 -5 ------- Run | Yrd Mat Mat Sto Rec Fac Low Low Dat Pro Fac Was Fac Gar Fac Gar Fac Ext Cet Arc Slots Evolved 10 | . . 2 . . 4 . . . . 2 . . . . . 2 . . . Power 1 | . . . . . . . . . . 1 . . . . . . . . . Propulsion 2 | . . . . . 1 . . . . . . . . . . 1 . . . Utility 5 | . . 1 . . 2 . . . . 1 . . . . . 1 . . . Weapon 2 | . . 1 . . 1 . . . . . . . . . . . . . . Parts Attached 94 | 8 11 8 9 6 11 2 1 . . 4 4 4 2 . 7 4 10 3 . Power 8 | 1 2 2 1 1 . . . . . . . . . . . . 1 . . Engine 7 | 1 2 2 1 1 . . . . . . . . . . . . . . . Core 1 | . . . . . . . . . . . . . . . . . 1 . . Reactor . | . . . . . . . . . . . . . . . . . . . . Propulsion 18 | 2 4 2 2 3 2 . . . . . . . . . . 1 2 . . Treads 9 | 2 . 2 2 3 . . . . . . . . . . . . . . . Leg 1 | . 1 . . . . . . . . . . . . . . . . . . Wheel 4 | . 3 . . . . . . . . . . . . . . 1 . . . Hover 2 | . . . . . 2 . . . . . . . . . . . . . . Flight 2 | . . . . . . . . . . . . . . . . . 2 . . Utility 40 | 3 2 1 1 2 4 . . . . 3 1 3 2 . 6 3 7 2 . Device 17 | 2 . . 1 1 3 . . . . 1 . 1 . . 4 . 3 1 . Storage 4 | 1 1 . . . . . . . . . . 1 . . . 1 . . . Processor 3 | . . 1 . . 1 . . . . . . 1 . . . . . . . Hackware . | . . . . . . . . . . . . . . . . . . . . Protection 16 | . 1 . . 1 . . . . . 2 1 . 2 . 2 2 4 1 . Artifact . | . . . . . . . . . . . . . . . . . . . . Weapon 28 | 2 3 3 5 . 5 2 1 . . 1 3 1 . . 1 . . 1 . Energy Gun 5 | . 1 . 3 . . . . . . . 1 . . . . . . . . Energy Cannon 2 | . . . 1 . . . . . . . . 1 . . . . . . . Ballistic Gun 11 | 2 2 3 . . 3 . . . . . . . . . 1 . . . . Ballistic Cannon 2 | . . . . . 1 . . . . . 1 . . . . . . . . Launcher 4 | . . . 1 . . 1 . . . 1 1 . . . . . . . . Special Weapon . | . . . . . . . . . . . . . . . . . . . . Impact Weapon 2 | . . . . . 1 . . . . . . . . . . . . 1 . Slashing Weapon 2 | . . . . . . 1 1 . . . . . . . . . . . . Piercing Weapon . | . . . . . . . . . . . . . . . . . . . . Special Melee Weapon . | . . . . . . . . . . . . . . . . . . . . Unidentified Prototypes 9 | . . . 2 1 1 1 . . . . 1 2 1 . . . . . . Corrupted Parts 1 | . 1 . . . . . . . . . . . . . . . . . . System Corruption 5 | . 5 . . . . . . . . . . . . . . . . . . Parts Lost 52 | . 7 1 5 . 4 . . . . 1 1 . 4 . 7 2 10 6 4 Power 8 | . 1 1 1 . 1 . . . . . . . 1 . . 1 2 . . Propulsion 12 | . 3 . 2 . . . . . . . . . . . 2 1 1 1 2 Utility 18 | . 1 . 1 . 1 . . . . 1 1 . 1 . 3 . 5 2 2 Weapon 14 | . 2 . 1 . 2 . . . . . . . 2 . 2 . 2 3 . Highest Loss Streak 6 | . 6 1 4 . 2 . . . . 1 1 . 3 . 6 1 6 6 3 To Critical Strikes 1 | . . . . . . . . . . . . . . . . . 1 . . Average Backups 8 | 2 6 9 8 9 9 8 8 10 9 9 8 7 8 9 6 4 11 4 2 Power . | . 2 2 . . . . . . . . . . . . . . . . . Propulsion . | . . 1 1 1 . . . . . . . . . . . . 1 . . Utility 3 | . 2 2 2 3 5 6 6 8 8 6 4 3 5 5 2 1 1 2 2 Weapon 3 | . 1 3 3 4 2 2 1 2 1 3 3 4 2 4 3 3 9 1 . Tool/Special . | . . . . . . . . . . . . . . . . . . . . Unused Backups 60 | . . 1 . 3 10 3 . . . 3 2 12 5 1 4 4 6 6 . Power 1 | . . . . . 1 . . . . . . . . . . . . . . Propulsion 1 | . . . . . 1 . . . . . . . . . . . . . . Utility 5 | . . . . . 1 . . . . 1 . 3 . . . . . . . Weapon 53 | . . 1 . 3 7 3 . . . 2 2 9 5 1 4 4 6 6 . Tool/Special . | . . . . . . . . . . . . . . . . . . . . Average Slot Usage (%) 63 | . 92 95 95 88 60 64 69 69 69 65 63 59 55 57 52 49 52 31 21 Engine 3 | . 12 11 10 10 3 5 . . . 1 . . 1 . . 2 . . . Core 3 | . . . . . 2 1 7 7 7 4 5 6 4 . 5 . 2 . . Treads 4 | . 19 7 20 17 . 4 . . . 3 . 2 . . 2 . . . . Leg 1 | . 2 5 . 1 3 . . . . . . . . . 2 2 1 . . Hover 1 | . . . . . 5 2 . . . 1 5 3 5 6 . . . . . Flight 1 | . . . . . . . 7 7 6 . . . . . 1 2 3 5 4 Device 15 | . 9 . 6 11 16 15 15 15 15 14 13 9 12 13 19 19 22 10 4 Storage 6 | . 14 11 11 11 7 7 7 7 7 6 6 6 6 6 2 3 5 5 5 Processor 3 | . . 6 11 3 3 7 7 7 7 6 6 9 9 6 . . . . . Protection 3 | . 1 11 2 4 . . . . . 4 5 6 3 6 6 5 5 2 . Energy Gun 2 | . . . 9 18 1 . . . . 2 2 . . . . . . . . Energy Cannon 2 | . . . 6 8 . . . . . . . 2 4 . 3 2 1 2 . Ballistic Gun 4 | . 26 33 15 1 7 6 7 7 7 3 2 . . 3 2 . . . . Ballistic Cannon 1 | . . . . . 1 . . . . . 1 2 3 6 2 2 3 . . Impact Weapon 1 | . . . . . 2 7 7 7 7 5 . . . . . . . 2 5 Slashing Weapon 1 | . . . . . . 2 7 7 7 6 6 6 . . . . . . . Peak Build Rating 102 | 9 8 10 22 39 57 58 55 52 56 66 77 80 80 78 81 86 102 67 33 Average Rating 57 | 6 6 9 15 25 45 51 50 52 52 61 68 74 71 76 67 75 93 46 28 On Entrance 47 | . 7 8 10 22 30 52 49 52 52 56 66 72 80 72 78 70 86 60 33 Avg Prop Armor Cover (%) 8 | . 10 9 11 . 8 . . . . . . . . . . 7 10 . . Naked Turns . | . . . . . . . . . . . . . . . . . . . . Heaviest Build 78 | 15 20 19 28 33 28 33 27 27 33 35 44 48 48 47 48 78 71 46 24 Greatest Support 63 | 40 40 40 40 43 63 56 56 56 63 63 63 63 54 54 56 30 61 27 18 Greatest Overweight (x) 5 | . 5 1 2 1 1 . . . . . . . . . 2 4 2 1 2 Average Overweight (x) . | . . . . . . . . . . . . . . . 1 1 . 1 1 Largest Inventory Capacity 15 | 8 10 10 10 10 10 10 10 10 10 10 10 10 10 10 10 15 15 15 15 Average Capacity 10 | 7 9 10 10 10 10 10 10 10 10 10 10 10 10 10 7 11 15 15 15 Most Carried 15 | 4 10 10 10 10 10 10 10 10 10 10 10 10 10 10 10 9 15 10 3 Average Carried 8 | 2 6 9 8 9 9 8 8 10 9 9 8 8 9 9 6 4 12 4 2 Final Capacity 15 | 8 10 10 10 10 10 10 10 10 10 10 10 10 10 10 5 15 15 15 15 Final Carried 11 | 4 10 7 9 7 8 8 10 10 10 10 9 9 10 10 4 6 11 3 2 Scrap Engine Consumption 360 | . . . . 26 34 12 5 . 6 30 16 25 43 3 60 38 56 6 . Constructs Created 7 | . . . . 3 2 . . . . . . . 1 1 . . . . . Constructs Modified 158 | . . . . 7 11 6 2 1 4 12 8 13 18 . 27 19 27 3 . Class Distribution -------------------- 71% | Construct 11% | Mutant 5% | Scavenger-Gunner 5% | Scavenger-Tank 4% | Commander-Construct Dominant Class ---------------- Mutant | -10/Materials Scavenger-Tank | -9/Materials Scavenger-Gunner | -9/Storage Scavenger-Tank | -9/Recycling Mutant | -7/Factory Construct | -7/Lower Caves Construct | -7/Lower Caves Construct | -7/Data Miner Construct | -6/Proximity Caves Construct | -6/Factory Construct | -6/Waste Construct | -6/Factory Construct | -6/Garrison Construct | -6/Factory Construct | -6/Garrison Construct | -5/Factory Construct | -5/Extension Mutant | -5/Cetus Mutant | -5/Archives Resources | -11 -10 -9 -9 -9 -7 -7 -7 -7 -6 -6 -6 -6 -6 -6 -6 -5 -5 -5 -5 ----------- Run | Yrd Mat Mat Sto Rec Fac Low Low Dat Pro Fac Was Fac Gar Fac Gar Fac Ext Cet Arc Matter Collected 4905 | 262 488 97 314 60 349 150 159 . 170 265 715 235 402 . 485 52 702 . . Remotely . | . . . . . . . . . . . . . . . . . . . . Salvage Created 15797 | 167 657 151 506 453 439 213 305 . 336 815 1003 312 1397 240 2085 1980 4583 30 125 Parts 636 | 13 48 12 24 24 25 13 14 . 12 42 . 10 68 12 85 89 143 2 . Haulers Intercepted 6 | . . 1 1 . 2 . . . . . . 1 . . . 1 . . . Recyclers Shooed 1 | 1 . . . . . . . . . . . . . . . . . . . Parts Field Recycled . | . . . . . . . . . . . . . . . . . . . . Retrieved Matter . | . . . . . . . . . . . . . . . . . . . . Parts Self-Destructed 19 | . . . . . . 4 . . 15 . . . . . . . . . . Prevented . | . . . . . . . . . . . . . . . . . . . . Parts Restored . | . . . . . . . . . . . . . . . . . . . . Kills | -11 -10 -9 -9 -9 -7 -7 -7 -7 -6 -6 -6 -6 -6 -6 -6 -5 -5 -5 -5 ------- Run | Yrd Mat Mat Sto Rec Fac Low Low Dat Pro Fac Was Fac Gar Fac Gar Fac Ext Cet Arc Combat Hostiles Destroyed 287 | . 19 4 15 6 8 9 5 . 13 15 6 3 28 3 32 28 88 4 1 Melee 5 | . . . . . . . 1 . . . . . . . . . 3 1 . Guns 58 | . 19 4 4 4 5 . . . 3 12 1 . . . 6 . . . . Cannons 142 | . . . 2 2 2 . . . . . . 3 28 3 23 26 52 1 . AOE 70 | . . . 9 . . 7 4 . 10 3 5 . . . . 2 29 1 . Classes Destroyed 23 | 2 4 2 3 1 1 2 . . . 2 1 2 1 . 1 . 1 . . Worker 13 | . 3 . . . 1 . . . . . . . . 1 . 8 . . . Builder 10 | . 1 . 2 . . . . . . 1 . . . 1 . 4 1 . . Tunneler 5 | 3 1 . . . . . . . . 1 . . . . . . . . . Hauler 6 | . . 1 1 . 2 . . . . . . 1 . . . 1 . . . Recycler 8 | 1 . . . 1 . . . . . 1 . . . . . 3 2 . . Mechanic 2 | . . . . . . . . . . . . 1 . . . . 1 . . Operator 3 | . . . . . . . . . . 1 . . . . . 1 . . 1 Watcher 3 | . . . . . . . . . . 1 . . . . . 1 . 1 . Swarmer 70 | . 9 3 . . 3 7 4 . 8 7 . . 10 . 6 13 . . . Saboteur 6 | . . . . . . . . . . . . . . . . . 6 . . Grunt 86 | . 10 . 8 . 3 . . . 3 6 1 1 5 2 8 5 34 . . Brawler 21 | . . . 2 . . . 3 . 1 1 . . 1 . 5 2 6 . . Duelist 20 | . . . 2 . . . . . . . . . 4 . 2 1 11 . . Protector 7 | . . . 2 . . . . . . . . . . . . . 5 . . Sentry 29 | . . 1 1 3 . 1 . . 1 . . . 4 1 3 1 12 . 1 Specialist 1 | . . . . . . . . . . . . . 1 . . . . . . Hunter 12 | . . . . . . . . . . . . 2 1 . 1 3 5 . . Programmer 20 | . . . . . 2 . . . . 1 . . 2 . 6 2 7 . . Behemoth 4 | . . . . . . . . . . . . . . . 2 1 1 . . Compactor 5 | . . . . . . . . . . . 5 . . . . . . . . Cetus Guard 4 | . . . . . . . . . . . . . . . . . . 4 . Scrapper 3 | . . . . 3 . . . . . . . . . . . . . . . Samaritan 1 | . . . . . . 1 . . . . . . . . . . . . . Butcher 1 | . . . . . . . . . . . . . . . . . 1 . . Mutant 2 | . . . . . . 1 1 . . . . . . . . . . . . Best Kill Streak 34 | 3 5 3 7 2 6 7 4 . 7 4 4 1 9 5 9 12 34 3 2 Combat Bots Only 33 | . 5 3 6 2 5 7 4 . 7 4 4 1 9 3 9 9 33 2 1 Max Kills in Single Turn 11 | 1 2 2 3 1 1 2 1 . 3 3 1 1 2 2 1 3 11 1 1 Gunslinging 1 | . 1 1 . . . . . . . . . . . . . . . . . Exploded 11 | . . . 3 . . 2 1 . 3 2 1 . . . . 2 11 1 . Melee 1 | . . . . . . . 1 . . . . . . . . . 1 1 . Uniques/NPCs Destroyed . | . . . . . . . . . . . . . . . . . . . . Combat | -11 -10 -9 -9 -9 -7 -7 -7 -7 -6 -6 -6 -6 -6 -6 -6 -5 -5 -5 -5 -------- Run | Yrd Mat Mat Sto Rec Fac Low Low Dat Pro Fac Was Fac Gar Fac Gar Fac Ext Cet Arc Hostile Shots Fired 1609 | . 134 34 53 17 89 59 20 . 28 86 3 6 285 18 188 165 297 95 32 Missed 527 | . 35 14 15 8 23 25 8 . 10 29 1 2 110 6 61 58 84 31 7 Hits 1082 | . 99 20 38 9 66 34 12 . 18 57 2 4 175 12 127 107 213 64 25 Melee 36 | . . . 10 . . . . . . 2 . . 5 . 2 . 17 . . Projectile 1046 | . 99 20 28 9 66 34 12 . 18 55 2 4 170 12 125 107 196 64 25 AOE 2 | . . . . . . . . . . . . . . . . . 2 . . Critical Strikes 48 | . 1 2 3 2 3 . . . . 1 . . 2 1 9 3 19 2 . Actively Blocked 2 | . . . 2 . . . . . . . . . . . . . . . . Part Disruptions 1 | . . . . . 1 . . . . . . . . . . . . . . Damage Taken 20609 | . 1017 230 654 194 1000 365 162 . 323 1164 343 176 2348 160 2811 2289 4858 1839 676 Core 2382 | . 225 42 94 37 158 11 56 . 37 139 35 . 248 10 273 244 330 285 158 Absorbed by Shields 458 | . . . . . 16 . . . . . . . 9 . . . 433 . . Redirected to Shielding 120 | . 6 18 33 . . . . . . . . . . . . 63 . . . Regen/Repaired (Parts) 6616 | . . . . . 291 308 21 21 250 423 363 65 1013 . 1220 458 1899 284 . Core Remaining (%) 49 | 100 10 . . 56 . . . . 62 . . . . . 17 . . . . Volleys Fired 754 | 9 66 9 52 29 40 8 6 . 15 74 10 16 80 7 88 75 162 8 . Largest 3 | 2 2 3 3 3 3 1 1 . 1 1 1 1 2 2 2 1 1 1 . Hottest 218 | 40 60 60 218 218 79 36 36 . 36 50 50 48 103 111 130 166 130 54 . Shots Fired 1069 | 18 133 27 111 59 83 8 6 . 13 74 10 16 114 14 139 75 161 8 . Gun 520 | 18 133 27 78 46 64 . . . 7 72 1 1 . 7 66 . . . . Cannon 501 | . . . 24 13 19 . . . . . . 15 114 7 73 75 156 5 . Launcher 48 | . . . 9 . . 8 6 . 6 2 9 . . . . . 5 3 . Special . | . . . . . . . . . . . . . . . . . . . . Kinetic 702 | 18 129 27 67 8 83 . . . 7 47 1 15 63 14 79 58 81 5 . Thermal 265 | . 4 . 35 49 . . . . . 25 . 1 51 . 25 8 67 . . Explosive 48 | . . . 9 . . 8 6 . 6 2 9 . . . . . 5 3 . Electromagnetic 54 | . . . . 2 . . . . . . . . . . 35 9 8 . . Robot Hit Streak 23 | 6 23 5 8 7 8 . . . 14 11 4 5 15 3 14 10 9 5 . Robot Miss Streak 8 | 1 4 5 4 2 4 . . . 1 4 8 1 6 1 6 8 7 3 . Penetration Max 2 | . . . . . 1 . . . . 1 . . . 1 . 2 1 . . Secondary Targets 10 | . 8 1 1 . . . . . . . . . . . . . . . . Max Gunslinging Chain 1 | . 1 1 1 . . . . . . . . . . . . . . . . Shots Hit Robots 745 | 13 96 14 59 27 46 12 11 . 8 57 9 11 94 13 89 57 104 17 8 Core Hits 703 | 5 37 8 38 10 18 10 10 . 26 37 26 6 50 9 59 66 231 57 . Critical Kills 8 | . . . . . . . . . . 3 1 2 . . . . 2 . . Critical Parts Destroyed 16 | . . . . . . 3 2 . . 4 . . . . 1 1 1 2 2 Critical Strikes 32 | . . . . 1 . 3 2 . . 7 1 2 5 . 1 1 3 2 4 Burn 1 | . . . . 1 . . . . . . . . . . . . . . . Destroy 15 | . . . . . . . . . . 7 1 2 . . 1 1 3 . . Blast 4 | . . . . . . . . . . . . . 4 . . . . . . Smash 11 | . . . . . . 3 2 . . . . . . . . . . 2 4 Sever 1 | . . . . . . . . . . . . . 1 . . . . . . Melee Attacks 76 | . . . . . 3 13 14 . . 6 . 7 9 . . . . 11 13 Impact 54 | . . . . . 3 13 10 . . 4 . . . . . . . 11 13 Slashing 22 | . . . . . . . 4 . . 2 . 7 9 . . . . . . Piercing . | . . . . . . . . . . . . . . . . . . . . Sneak Attacks 9 | . . . . . . 1 6 . . 1 . . . . . . . . 1 Combat Hostiles . | . . . . . . . . . . . . . . . . . . . . Follow-up Attacks 3 | . . . . . . . 3 . . . . . . . . . . . . Damage Inflicted 47182 | 164 1167 120 1987 548 1017 1031 919 . 947 1790 3428 303 4151 596 4400 5263 17627 1471 253 Guns 5534 | 164 1059 120 494 390 784 . . . 120 1370 29 10 . 199 795 . . . . Cannons 24823 | . . . 308 158 233 . . . . . . 293 3414 397 3605 4563 11665 187 . Explosions 14251 | . 107 . 1185 . . 494 365 . 827 252 3399 . . . . 700 5962 960 . Melee 2565 | . . . . . . 537 554 . . 168 . . 737 . . . . 316 253 Ramming 9 | . 1 . . . . . . . . . . . . . . . . 8 . Kinetic 17091 | 164 1027 120 325 . 1017 . . . 120 837 29 293 1530 596 1695 3277 5874 187 . Thermal 10395 | . 62 . 477 525 . . . . . 533 . 10 1884 . 1276 931 4697 . . Explosive 13763 | . . . 1185 . . 494 365 . 827 252 3399 . . . . 319 5962 960 . Electromagnetic 3359 | . 77 . . 23 . . . . . . . . . . 1429 736 1094 . . Impact 1681 | . . . . . . 537 407 . . 168 . . . . . . . 316 253 Slashing 884 | . . . . . . . 147 . . . . . 737 . . . . . . Piercing . | . . . . . . . . . . . . . . . . . . . . Highest Corruption 12 | . 5 . . . 8 8 8 8 8 2 2 2 2 2 12 2 9 9 9 Average Corruption 5 | . 5 . . . 7 8 8 8 8 2 2 2 2 2 11 1 3 9 9 Corruption Purged . | . . . . . . . . . . . . . . . . . . . . Corruption Blocked . | . . . . . . . . . . . . . . . . . . . . Effects 254 | . 2 . . . 27 20 11 1 26 8 10 5 15 1 79 1 28 17 3 Message Errors 56 | . . . . . 7 5 . 1 4 5 2 2 4 . 16 . 4 6 . Matter Fused 59 | . 1 . . . 4 2 3 . 7 . 1 2 4 . 19 1 9 5 1 Heat Flow Errors 39 | . . . . . 4 2 4 . 4 1 . 1 2 . 13 . 7 1 . Energy Discharges 34 | . . . . . 3 3 1 . 4 2 . . 2 . 11 . 6 2 . Parts Rejected 3 | . . . . . 1 . . . . . . . 1 . . . . . 1 Parts Fused 5 | . . . . . 1 . . . 1 . . . . . 2 . 1 . . Data Loss (minor) 30 | . . . . . 1 7 2 . 3 . 6 . 2 1 6 . . 2 . Data Loss (major) 12 | . . . . . 2 1 1 . 1 . 1 . . . 5 . . . 1 Misfires 2 | . 1 . . . 1 . . . . . . . . . . . . . . Alerts 6 | . . . . . 3 . . . . . . . . . 2 . . 1 . Misdirections 1 | . . . . . . . . . . . . . . . 1 . . . . Weapon Failures 7 | . . . . . . . . . 2 . . . . . 4 . 1 . . Overload Shots . | . . . . . . . . . . . . . . . . . . . . Overflow Damage 2309 | . . . . . 18 221 171 . 45 124 . 2 117 . 12 224 1210 64 101 Projectiles 1390 | . . . . . 18 . . . . . . 2 41 . 12 131 1186 . . Explosions 199 | . . . . . . 36 . . 45 1 . . . . . 93 24 . . Melee 720 | . . . . . . 185 171 . . 123 . . 76 . . . . 64 101 Knockbacks 45 | . . . . . 3 . . . . . . 1 13 . 2 14 11 . 1 Impact 1 | . . . . . . . . . . . . . . . . . . . 1 Kinetic 33 | . . . . . 2 . . . . . . 1 11 . 2 12 5 . . Secondary 11 | . . . . . 1 . . . . . . . 2 . . 2 6 . . Self-Inflicted Damage 834 | . . . . . . . . . . 109 312 . 92 . . 190 91 40 . Shots 30 | . . . . . . . . . . 4 13 . 1 . . 6 4 2 . Rammed 1 | . . . . . . . . . . . . . . . . . . 1 . Targets Rammed 2 | . 1 . . . . . . . . . . . . . . . . 1 . Kicked 1 | . 1 . . . . . . . . . . . . . . . . . . Crushed . | . . . . . . . . . . . . . . . . . . . . Highest Temperature 521 | . 39 59 185 252 200 141 192 . 265 49 . 197 263 249 313 204 521 177 . Average Temperature 92 | . 11 17 74 93 62 71 85 . 106 10 . 48 55 136 94 71 140 100 . Received Heat Transfer 4590 | . 450 129 150 131 273 60 60 . 36 324 18 12 351 69 712 249 1179 270 117 Effects 10 | . . . . . . . . . . . . . 3 . 1 . 6 . . Shutdowns 1 | . . . . . . . . . . . . . . . . . 1 . . Energy Bleed 3 | . . . . . . . . . . . . . 2 . . . 1 . . Interference 5 | . . . . . . . . . . . . . 1 . 1 . 3 . . Damage (minor) 1 | . . . . . . . . . . . . . . . . . 1 . . Siege Activations . | . . . . . . . . . . . . . . . . . . . . Martial Activations . | . . . . . . . . . . . . . . . . . . . . Shielding Activations . | . . . . . . . . . . . . . . . . . . . . Robots Disrupted 1 | . . . . . . . . . . . . . . . . 1 . . . Combat Hostiles 1 | . . . . . . . . . . . . . . . . 1 . . . Robots Corrupted 18 | . . . . . 1 3 2 . . . . . . . 4 . 5 1 2 Combat Hostiles 14 | . . . . . 1 2 1 . . . . . . . 4 . 4 1 1 Parts Fried 41 | . . . . . . 2 . . . 3 . . . . 10 3 19 . 4 Impact Corruptions 30 | . . . . . 1 9 6 . . 3 . . 1 . . . 3 3 4 Robots Melted 1 | . . . . . . . . . . . . . . . 1 . . . . Combat Hostiles 1 | . . . . . . . . . . . . . . . 1 . . . . Parts Melted 13 | . . . 2 3 . . . . . . . . 5 . 2 . 1 . . Heat Transferred 9985 | . 125 . 851 891 . . . . . 814 . 37 2677 . 2109 742 1739 . . Parts Sabotaged 3 | . . . . . . . . . . . . . . . . . 3 . . Parts Stolen . | . . . . . . . . . . . . . . . . . . . . Parts Stripped . | . . . . . . . . . . . . . . . . . . . . Power Chain Reactions 5 | . 3 . . . . . . . . . . . . . . 2 . . . Alert | -11 -10 -9 -9 -9 -7 -7 -7 -7 -6 -6 -6 -6 -6 -6 -6 -5 -5 -5 -5 ------- Run | Yrd Mat Mat Sto Rec Fac Low Low Dat Pro Fac Was Fac Gar Fac Gar Fac Ext Cet Arc Maximum Alert Level 5 | . 1 . 1 . 1 . . . . 1 . 2 4 3 5 5 5 5 2 Low Security (%) 38 | 100 80 100 26 100 84 . . . . 96 100 11 . . . . . . . Level 1 8 | . 19 . 73 . 15 . . . . 3 . 66 . . . . . . . Level 2 4 | . . . . . . . . . . . . 22 24 . 3 . . . 100 Level 3 11 | . . . . . . . . . . . . . 17 100 26 6 32 . . Level 4 25 | . . . . . . . . . . . . . 58 . 57 73 35 . . Level 5 8 | . . . . . . . . . . . . . . . 12 20 9 100 . High Security 3 | . . . . . . . . . . . . . . . . . 22 . . Max Security . | . . . . . . . . . . . . . . . . . . . . Peak Influence 3302 | 10 242 174 328 150 250 . . . . 261 146 606 1515 883 1725 1977 3302 1832 696 Initial 1832 | . . 94 50 110 250 . . . . 28 87 . 413 795 583 905 966 1832 686 Average 741 | 1 119 143 237 12 148 . . . . 66 55 306 1044 824 1303 1382 1481 1779 676 Influence Increases 12198 | 20 576 107 538 172 494 210 95 . 330 607 141 984 1282 118 1292 1610 3448 149 25 Destroy 0b10 Robot/C 6640 | . 380 80 320 60 160 160 80 . 300 300 20 340 760 60 820 580 2120 80 20 Destroy 0b10 Robot/NC 355 | 20 25 5 25 5 15 . 5 . . 25 . 15 20 10 10 90 75 5 5 Destroy Leader 822 | . 90 22 72 . 34 20 10 . 20 52 . 82 30 20 40 114 216 . . Allied During Kill 1200 | . . . 20 . . . . . 10 . . 381 138 5 112 6 528 . . Successful Hack 95 | . . . . . 16 . . . . . . 9 28 . 14 28 . . . Select Force Hacks 150 | . 60 . . 90 . . . . . . . . . . . . . . . Disable Machine 480 | . 15 . 45 15 15 . . . . . . 75 . . . 315 . . . Anti-Garrison Action 500 | . . . . . . . . . . 150 . . 150 . 200 . . . . Destroy Structure 1181 | . 6 . 56 2 4 . . . . 50 121 82 96 8 66 432 194 64 . Advance Influence 250 | . . . . . 250 . . . . . . . . . . . . . . Partial Spotted 15 | . . . . . . . . . . . . . . . . . 15 . . Lose Combat Pursuer 510 | . . . . . . 30 . . . 30 . . 60 15 30 45 300 . . Influence Decreases 11557 | 20 350 212 375 456 456 152 169 22 285 403 390 394 357 800 400 1362 2149 1706 1099 Entered New Map 6055 | . . 132 71 174 . 15 19 22 . 17 162 . 177 720 250 820 1007 1440 1029 Time Decay 3999 | 20 280 70 214 172 416 137 150 . 285 375 206 334 . 60 . 502 542 206 30 Lost Part 520 | . 70 10 50 . 40 . . . . 10 10 . 40 . 70 20 100 60 40 Lost Ally 873 | . . . 40 . . . . . . 1 12 60 140 20 80 20 500 . . Purge Threat 110 | . . . . 110 . . . . . . . . . . . . . . . Squads Dispatched 56 | . 5 1 5 . 3 . . . 1 8 . 3 . . . 9 21 . . Investigation 9 | . 3 . 1 . . . . . . 1 . 1 . . . 3 . . . Extermination 6 | . . . . . 2 . . . . 1 . 1 . . . 2 . . . Reinforcement 11 | . 2 1 2 . 1 . . . . 4 . . . . . 1 . . . Assault 28 | . . . 2 . . . . . 1 2 . 1 . . . 1 21 . . Garrison 2 | . . . . . . . . . . . . . . . . 2 . . . Intercept . | . . . . . . . . . . . . . . . . . . . . Searches Triggered . | . . . . . . . . . . . . . . . . . . . . Data Miner Redirects 2 | . . . . . . . . . . . . . . . . 1 1 . . Construction Impeded 2 | . . . 1 . . . . . . 1 . . . . . . . . . Haulers Reinforced 2 | . . . . . 1 . . . . 1 . . . . . . . . . Active Scanning Responses . | . . . . . . . . . . . . . . . . . . . . Cargo Convoy Interrupts . | . . . . . . . . . . . . . . . . . . . . Stealth | -11 -10 -9 -9 -9 -7 -7 -7 -7 -6 -6 -6 -6 -6 -6 -6 -5 -5 -5 -5 --------- Run | Yrd Mat Mat Sto Rec Fac Low Low Dat Pro Fac Was Fac Gar Fac Gar Fac Ext Cet Arc Distress Signals 8 | . 1 1 . . . . . . . . . . . . . 1 4 1 . Communications Jammed . | . . . . . . . . . . . . . . . . . . . . Distress Signals . | . . . . . . . . . . . . . . . . . . . . Times Spotted 438 | . 27 8 23 5 12 10 5 . 15 20 7 15 39 4 40 38 162 5 3 Peak Tracking Total 24 | . 6 6 7 4 4 3 4 . 7 4 3 5 6 4 9 6 24 5 2 Tactical Retreats 15 | . . . . . . 1 . . . 2 1 . 4 1 1 1 4 . . Traps | -11 -10 -9 -9 -9 -7 -7 -7 -7 -6 -6 -6 -6 -6 -6 -6 -5 -5 -5 -5 ------- Run | Yrd Mat Mat Sto Rec Fac Low Low Dat Pro Fac Was Fac Gar Fac Gar Fac Ext Cet Arc Traps Triggered 23 | . 3 . 1 . 2 . . . . 2 . . 2 . 9 1 3 . . Indirectly . | . . . . . . . . . . . . . . . . . . . . Trap Hack Attempts . | . . . . . . . . . . . . . . . . . . . . Triggered . | . . . . . . . . . . . . . . . . . . . . Disarmed . | . . . . . . . . . . . . . . . . . . . . Reprogrammed . | . . . . . . . . . . . . . . . . . . . . Reused . | . . . . . . . . . . . . . . . . . . . . Traps Extracted . | . . . . . . . . . . . . . . . . . . . . Installed . | . . . . . . . . . . . . . . . . . . . . Triggered . | . . . . . . . . . . . . . . . . . . . . Machines | -11 -10 -9 -9 -9 -7 -7 -7 -7 -6 -6 -6 -6 -6 -6 -6 -5 -5 -5 -5 ---------- Run | Yrd Mat Mat Sto Rec Fac Low Low Dat Pro Fac Was Fac Gar Fac Gar Fac Ext Cet Arc Machines Disabled 41 | . 1 . 3 2 1 1 . . 1 1 . 5 2 . 2 21 1 . . Max in Single Turn 6 | . 1 . 1 1 1 1 . . 1 1 . 1 2 . 1 6 . . . Garrison Access 4 | . . . . . 1 . . . . 1 . . . . . 2 . . . Phase Generator 1 | . . . . . . . . . . . . . 1 . . . . . . Machines Repaired . | . . . . . . . . . . . . . . . . . . . . Machines Dismantled . | . . . . . . . . . . . . . . . . . . . . Machines Sabotaged . | . . . . . . . . . . . . . . . . . . . . Overloaded Fab Kills . | . . . . . . . . . . . . . . . . . . . . Hacking | -11 -10 -9 -9 -9 -7 -7 -7 -7 -6 -6 -6 -6 -6 -6 -6 -5 -5 -5 -5 --------- Run | Yrd Mat Mat Sto Rec Fac Low Low Dat Pro Fac Was Fac Gar Fac Gar Fac Ext Cet Arc Machines Accessed 49 | . 4 . . 15 7 . 1 4 . 1 . 5 2 1 1 6 2 . . Terminals 18 | . 2 . . 6 2 . . . . . . 1 2 . 1 2 2 . . Fabricators 2 | . . . . . 1 . . . . . . . . . . 1 . . . Repair Stations 1 | . . . . . . . . . . . . 1 . . . . . . . Recycling Units 12 | . 2 . . 8 1 . . . . . . 1 . . . . . . . Scanalyzers 4 | . . . . . 2 . . . . . . 1 . . . 1 . . . Garrison Access 6 | . . . . . 1 . . . . 1 . 1 . 1 . 2 . . . Total Hacks 124 | . 8 . . 38 13 . 1 31 . 3 . 10 3 2 1 9 5 . . Successful 87 | . 4 . . 28 3 . 1 31 . . . 7 2 2 1 7 1 . . Failed 36 | . 4 . . 10 9 . . . . 3 . 3 1 . . 2 4 . . Catastrophic 8 | . 1 . . . 3 . . . . . . 1 . . . 1 2 . . Database Lockouts 1 | . . . . . 1 . . . . . . . . . . . . . . Manual 29 | . 8 . 1 12 3 . . . . . . 3 . . . 1 1 . . Terminals 44 | . 6 . . 17 5 . . . . . . 4 3 . 1 3 5 . . Fabricators 4 | . . . . . 2 . . . . . . . . . . 2 . . . Repair Stations 1 | . . . . . . . . . . . . 1 . . . . . . . Recycling Units 23 | . 2 . . 19 1 . . . . . . 1 . . . . . . . Scanalyzers 8 | . . . . . 3 . . . . . . 3 . . . 2 . . . Garrison Access 10 | . . . . . 2 . . . . 3 . 1 . 2 . 2 . . . Terminal Hacks 45 | . . . . 6 1 . 1 31 . . . 1 2 . 1 1 1 . . Record 11 | . . . . . . . . 11 . . . . . . . . . . . Part Schematic 11 | . . . . . . . . 11 . . . . . . . . . . . Robot Schematic 6 | . . . . . . . . 6 . . . . . . . . . . . Prototype ID Bank 5 | . . . . 1 . . . 3 . . . . . . . . 1 . . Open Door 1 | . . . . . . . 1 . . . . . . . . . . . . Branch Access Points 2 | . . . . . 1 . . . . . . . . . . 1 . . . Emergency Access Points 3 | . . . . . . . . . . . . 1 1 . 1 . . . . Alert Level 2 | . . . . 2 . . . . . . . . . . . . . . . Unreport Threat 1 | . . . . 1 . . . . . . . . . . . . . . . Garrison Registry 1 | . . . . . . . . . . . . . 1 . . . . . . Release Object 2 | . . . . 2 . . . . . . . . . . . . . . . Fabricator Hacks 2 | . . . . . . . . . . . . . . . . 2 . . . Load Schematic 1 | . . . . . . . . . . . . . . . . 1 . . . Build 1 | . . . . . . . . . . . . . . . . 1 . . . Repair Station Hacks . | . . . . . . . . . . . . . . . . . . . . Recycling Unit Hacks 14 | . . . . 13 . . . . . . . 1 . . . . . . . Report Inventory 11 | . . . . 10 . . . . . . . 1 . . . . . . . Retrieve Components 3 | . . . . 3 . . . . . . . . . . . . . . . Scanalyzer 4 | . . . . . 1 . . . . . . 2 . . . 1 . . . Insert Component 1 | . . . . . . . . . . . . 1 . . . . . . . Retrieve Study 3 | . . . . . 1 . . . . . . 1 . . . 1 . . . Garrison Access Hacks 6 | . . . . . 1 . . . . . . 1 . 2 . 2 . . . Unlock Access 2 | . . . . . . . . . . . . 1 . 1 . . . . . Seal Access 3 | . . . . . 1 . . . . . . . . . . 2 . . . Coupler Status 1 | . . . . . . . . . . . . . . 1 . . . . . Unauthorized Hacks 16 | . 4 . . 9 . . . . . . . 2 . . . 1 . . . Terminals 11 | . 2 . . 6 . . . . . . . 2 . . . 1 . . . Botnet 6 | . 1 . . 3 . . . . . . . 1 . . . 1 . . . Skim 5 | . 1 . . 3 . . . . . . . 1 . . . . . . . Fabricators . | . . . . . . . . . . . . . . . . . . . . Repair Stations . | . . . . . . . . . . . . . . . . . . . . Recycling Units 5 | . 2 . . 3 . . . . . . . . . . . . . . . Tunnel 5 | . 2 . . 3 . . . . . . . . . . . . . . . Scanalyzers . | . . . . . . . . . . . . . . . . . . . . Garrison Access . | . . . . . . . . . . . . . . . . . . . . Data Cores Recovered 1 | . . . . . . . . . . . . . . . . 1 . . . Used . | . . . . . . . . . . . . . . . . . . . . Hacking Detections 30 | . 2 . . 8 6 . . . . 1 . 4 2 1 1 3 2 . . Full Trace Events 6 | . . . . 2 . . . . . 1 . 1 . . . 2 . . . Feedback Events . | . . . . . . . . . . . . . . . . . . . . Feedback Blocked . | . . . . . . . . . . . . . . . . . . . . Robot Schematics Acquired 6 | . . . . . . . . 6 . . . . . . . . . . . Robots Built . | . . . . . . . . . . . . . . . . . . . . Authchips . | . . . . . . . . . . . . . . . . . . . . Time . | . . . . . . . . . . . . . . . . . . . . Total Robot Build Rating . | . . . . . . . . . . . . . . . . . . . . Part Schematics Acquired 11 | . . . . . . . . 11 . . . . . . . . . . . Parts Built 2 | . . . . . . . . . . . . . . . . 2 . . . Authchips . | . . . . . . . . . . . . . . . . . . . . Time 53 | . . . . . . . . . . . . . . . . 53 . . . Total Part Build Rating 12 | . . . . . . . . . . . . . . . . 12 . . . Part Studies Acquired 3 | . . . . . 1 . . . . . . 1 . . . 1 . . . Parts Repaired . | . . . . . . . . . . . . . . . . . . . . Time . | . . . . . . . . . . . . . . . . . . . . Parts Recycled . | . . . . . . . . . . . . . . . . . . . . Recycled Matter . | . . . . . . . . . . . . . . . . . . . . Retrieved Matter . | . . . . . . . . . . . . . . . . . . . . Retrieved Components 11 | . . . . 11 . . . . . . . . . . . . . . . Parts Scanalyzed 1 | . . . . . . . . . . . . 1 . . . . . . . Part Schematics Acquired . | . . . . . . . . . . . . . . . . . . . . Parts Damaged . | . . . . . . . . . . . . . . . . . . . . Bothacking | -11 -10 -9 -9 -9 -7 -7 -7 -7 -6 -6 -6 -6 -6 -6 -6 -5 -5 -5 -5 ------------ Run | Yrd Mat Mat Sto Rec Fac Low Low Dat Pro Fac Was Fac Gar Fac Gar Fac Ext Cet Arc Used RIF Installer 2 | . . . . . . . . . . . . . 1 . 1 . . . . Command Fork 1 | . . . . . . . . . . . . . . . 1 . . . . Robots Hacked . | . . . . . . . . . . . . . . . . . . . . Non-combat . | . . . . . . . . . . . . . . . . . . . . Combat . | . . . . . . . . . . . . . . . . . . . . Robot Hacks Applied . | . . . . . . . . . . . . . . . . . . . . Relay Couplers Released . | . . . . . . . . . . . . . . . . . . . . Fabnet Peak Effective % . | . . . . . . . . . . . . . . . . . . . . Robots Rewired 32 | . . . . . . . . . 1 . . . 3 . 7 . 21 . . Allies Hacked 4 | . . . . . . . . . . . . . . . . . 4 . . Hacks Repelled . | . . . . . . . . . . . . . . . . . . . . Allies | -11 -10 -9 -9 -9 -7 -7 -7 -7 -6 -6 -6 -6 -6 -6 -6 -5 -5 -5 -5 -------- Run | Yrd Mat Mat Sto Rec Fac Low Low Dat Pro Fac Was Fac Gar Fac Gar Fac Ext Cet Arc Total Allies 63 | . . . 2 . . . . . 1 . 19 . 3 . 7 . 31 . . Largest Group 19 | . . . 2 . . . . . 1 1 19 16 6 1 6 1 9 . . Highest-Rated Group 702 | . . . 62 . . . . . 29 29 702 593 234 20 120 116 379 . . Highest-Rated Ally 159 | . . . 31 . . . . . 29 29 50 50 50 20 116 116 159 . . Total Orders . | . . . . . . . . . . . . . . . . . . . . Ally Attacks 467 | . . . 20 . . . . . 2 5 23 85 42 1 32 8 249 . . Total Damage 11699 | . . . 341 . . . . . 38 96 1550 2145 1682 20 869 432 4526 . . Kills 77 | . . . 3 . . . . . 2 . 2 18 10 . 9 1 32 . . Allies Corrupted 4 | . . . . . . . . . . . . 2 1 . 1 . . . . Allies Melted 2 | . . . . . . . . . . 1 . . . . . . 1 . . Intel | -11 -10 -9 -9 -9 -7 -7 -7 -7 -6 -6 -6 -6 -6 -6 -6 -5 -5 -5 -5 ------- Run | Yrd Mat Mat Sto Rec Fac Low Low Dat Pro Fac Was Fac Gar Fac Gar Fac Ext Cet Arc Active Infowar (turns) 3894 | 58 483 . . . 518 583 409 54 923 866 . . . . . . . . . Sensors 3353 | . . . . . 518 583 409 54 923 866 . . . . . . . . . Terrain 41 | 41 . . . . . . . . . . . . . . . . . . . Seismic 500 | 17 483 . . . . . . . . . . . . . . . . . . Robot Analysis Total . | . . . . . . . . . . . . . . . . . . . . Derelict Logs Recovered 5 | . . . . . . 1 2 . 2 . . . . . . . . . . Drone Launches . | . . . . . . . . . . . . . . . . . . . . Drone Recoveries . | . . . . . . . . . . . . . . . . . . . . Exploration | -11 -10 -9 -9 -9 -7 -7 -7 -7 -6 -6 -6 -6 -6 -6 -6 -5 -5 -5 -5 ------------- Run | Yrd Mat Mat Sto Rec Fac Low Low Dat Pro Fac Was Fac Gar Fac Gar Fac Ext Cet Arc Turns Passed 15659 | 135 684 157 455 1777 1006 583 409 54 923 1055 617 758 1201 123 1863 1351 1997 432 79 Spaces Moved 9337 | 60 307 106 180 1020 761 713 508 77 659 522 339 583 865 113 809 696 789 204 26 Core 7 | 2 5 . . . . . . . . . . . . . . . . . . Treads 2608 | 58 182 20 161 876 . 449 . . 60 334 10 157 . . 301 . . . . Legs 1250 | . 8 . . 144 264 . . . . . . . 95 . 223 290 226 . . Wheels 634 | . 112 86 19 . . . . . . 98 . . . . . 290 29 . . Hover 2514 | . . . . . 492 260 . . . 90 329 426 770 113 34 . . . . Flight 2324 | . . . . . 5 4 508 77 599 . . . . . 251 116 534 204 26 Fastest Speed 50 | 50 95 95 95 120 70 70 70 70 70 103 120 91 73 73 73 115 65 118 118 Average Speed 127 | 156 138 107 154 158 97 70 70 70 133 126 120 104 89 73 184 169 168 118 142 Slowest Speed 419 | 160 300 160 240 240 194 70 70 70 139 139 130 130 124 73 257 419 318 118 171 Overloaded Moves . | . . . . . . . . . . . . . . . . . . . . Propulsion Burnouts . | . . . . . . . . . . . . . . . . . . . . Robots Hopped 3 | . . . . . . . . . 2 . . . . . . . 1 . . Potential Cave-ins 3 | . . . . . . . . . . . . . . . . . 3 . . Cave-ins Triggered . | . . . . . . . . . . . . . . . . . . . . Exploration Rate (%) 48 | 5 57 16 24 97 17 83 63 68 77 12 88 20 75 4 77 25 82 49 36 Regions Visited 19 Branch Regions 9 Pre-discovered Areas 7 | . 2 . . 3 . . . 1 1 . . . . . . . . . . Known Exits Taken 10 | . . 1 1 . 1 1 1 1 1 . . 1 . 1 . 1 . . . Unknown Exits Taken 5 | 1 1 . . 1 . . . . . . . . . . . . 1 1 . Scrap Searched 3 | . . . . . . 1 1 . 1 . . . . . . . . . . Spaces Dug 167 | . . . 31 . 4 6 1 . . 1 . 7 . . . 116 1 . . Terrain Destroyed 1212 | . 5 . 77 . 4 55 22 . 51 56 243 11 64 8 5 268 218 125 . Melee 12 | . . . . . 3 . 1 . . 1 . 7 . . . . . . . Projectile 265 | . . . 1 . 1 . . . . 13 . 4 12 8 5 159 62 . . AOE 933 | . 5 . 76 . . 55 21 . 51 40 243 . 52 . . 109 156 125 . Terrain Rammed . | . . . . . . . . . . . . . . . . . . . . Walls Destroyed . | . . . . . . . . . . . . . . . . . . . . Machines Disabled . | . . . . . . . . . . . . . . . . . . . . Actions | -11 -10 -9 -9 -9 -7 -7 -7 -7 -6 -6 -6 -6 -6 -6 -6 -5 -5 -5 -5 --------- Run | Yrd Mat Mat Sto Rec Fac Low Low Dat Pro Fac Was Fac Gar Fac Gar Fac Ext Cet Arc Total 12079 | 80 438 136 273 1144 963 763 535 76 687 833 530 714 1151 140 1043 810 1350 367 46 Wait 1217 | . 40 5 19 54 114 20 5 . 2 218 160 71 152 18 67 19 116 132 5 Move 9315 | 59 306 105 179 1019 760 712 507 76 654 522 338 583 864 113 808 695 786 203 26 Hop 3 | . . . . . . . . . 2 . . . . . . . 1 . . Pick Up 101 | 3 8 2 5 8 14 3 2 . . 6 6 13 7 1 4 7 12 . . Fast Attach 58 | 8 7 2 4 2 10 1 1 . . 1 2 3 1 . 3 4 8 . 1 Attach 34 | . 4 3 4 . 1 1 1 . 3 2 2 . 1 . 2 2 4 4 . Detach 36 | 1 . . 2 6 3 1 2 . 3 . 3 3 1 . 1 3 5 2 . Swap 35 | . 5 3 7 4 1 1 . . . 1 . 1 3 . 5 . 4 . . Drop 123 | . 1 7 1 22 17 3 1 . . 5 9 17 6 1 9 5 12 6 1 Fire 754 | 9 66 9 52 29 40 8 6 . 15 74 10 16 80 7 88 75 162 8 . Melee 70 | . . . . . 3 13 10 . . 4 . 7 9 . . . . 11 13 Ram 1 | . . . . . . . . . . . . . . . . . . 1 . Kick 1 | . 1 . . . . . . . . . . . . . . . . . . Crush . | . . . . . . . . . . . . . . . . . . . . Escape Stasis 57 | . . . . . . . . . . . . . 12 . 15 . 30 . . Rewire 274 | . . . . . . . . . 8 . . . 15 . 41 . 210 . . Trap . | . . . . . . . . . . . . . . . . . . . . Miscellaneous . | . . . . . . . . . . . . . . . . . . . . Route ------- -11/Scrapyard -10/Materials -9/Materials -9/Storage -9/Recycling -7/Factory (discovered 3 exits: *Fac / *Low x2) -7/Lower Caves -7/Lower Caves (discovered 2 exits: *Fac / *Dat) -7/Data Miner -6/Proximity Caves -6/Factory -6/Waste -6/Factory -6/Garrison (discovered 3 exits: *Fac x3) -6/Factory -6/Garrison (discovered 2 exits: *Fac x2) -5/Factory (discovered 5 exits: [*Fac] / *Upp x2 / *Ext x2) -5/Extension (discovered 2 exits: [*Fac] / [*Cet]) -5/Cetus -5/Archives History --------- Turn | Location | Event 30 | -11/Scrapyard | Discovered new exit (range 15) 136 | -11/Scrapyard | Entered Materials 318 | -10/Materials | Build established: Mutant 639 | -10/Materials | Core integrity fell below 50% 668 | -10/Materials | Core integrity fell below 20% 679 | -10/Materials | Lost 6 parts (1p3n1u1w) 748 | -10/Materials | Discovered new exit (range 16) 820 | -10/Materials | Entered another Materials area 820 | -9/Materials | Evolved 2 slots: Utility x1, Weapon x1 857 | -9/Materials | Discovered new exit (range 16) 879 | -9/Materials | Identified exit to Storage 977 | -9/Materials | Entered Storage 1003 | -9/Storage | Met a pair of Derelict thieves 1128 | -9/Storage | Lost 4 parts (1p1n1u1w) 1373 | -9/Storage | Used back door to open Recycling access 1373 | -9/Storage | Discovered new exit (range 5) 1398 | -9/Storage | Identified exit to Recycling 1402 | -9/Storage | Build established: Scavenger-Gunner 1432 | -9/Storage | Entered Recycling 1433 | -9/Recycling | Met a Zionite searching for Scraptown 1780 | -9/Recycling | Discovered new exit (range 8) 2296 | -9/Recycling | Build established: Scavenger-Tank 2592 | -9/Recycling | Scanned before Scraplab entrance 2618 | -9/Recycling | Angered Scraplab inhabitants 2676 | -9/Recycling | Found Prototype Device 2676 | -9/Recycling | Identified Scrap Engine 3091 | -9/Recycling | Build established: Construct 3209 | -9/Recycling | Entered Factory 3209 | -7/Factory | Evolved 4 slots: Propulsion x1, Utility x2, Weapon x1 3314 | -7/Factory | Identified exit to Lower Caves 3338 | -7/Factory | Discovered new exit (range 8) 4147 | -7/Factory | Central database locked down 4215 | -7/Factory | Entered Lower Caves 4333 | -7/Lower Caves | Attracted the attention of an 0b10 checkpoint 4493 | -7/Lower Caves | Learned Factory security intel 4530 | -7/Lower Caves | Attacked by a delusional Derelict stockpiling parts 4679 | -7/Lower Caves | Discovered new exit (range 10) 4685 | -7/Lower Caves | Destroyed 7 combat bots 4686 | -7/Lower Caves | Identified exit to Lower Caves 4798 | -7/Lower Caves | Entered another Lower Caves area 4810 | -7/Lower Caves | Encountered a Warlord checkpoint 4857 | -7/Lower Caves | Discovered new exit (range 9) 4863 | -7/Lower Caves | Learned Factory terminal intel 4871 | -7/Lower Caves | Identified exit to Factory 5092 | -7/Lower Caves | Learned location of 1 exit from Factory 5130 | -7/Lower Caves | Discovered new exit (range 14) 5138 | -7/Lower Caves | Identified exit to Data Miner 5150 | -7/Lower Caves | Attacked by a delusional Derelict stockpiling Unaware 5207 | -7/Lower Caves | Entered Data Miner 5207 | -7/Data Miner | Discovered new exit (range 6) 5221 | -7/Data Miner | Met Data Miner 5233 | -7/Data Miner | Learned location of Section 7 (-2) 5233 | -7/Data Miner | Acquired the access code to Warlord's prototype stash 5245 | -7/Data Miner | Received God Mode back door access code from Data Miner 5260 | -7/Data Miner | Identified exit to Proximity Caves 5261 | -7/Data Miner | Entered Proximity Caves 5263 | -6/Proximity Caves | Attracted the attention of an 0b10 outpost 5301 | -6/Proximity Caves | Destroyed 7 combat bots 5349 | -6/Proximity Caves | Learned location of 1 exit from Lower Caves 6094 | -6/Proximity Caves | Discovered exit to Factory (range 7) 6184 | -6/Proximity Caves | Entered Factory 6184 | -6/Factory | Accompanied by 1 ally 6184 | -6/Factory | Evolved 2 slots: Power x1, Utility x1 6185 | -6/Factory | Identified exit to Factory 6187 | -6/Factory | Loaded intel: 26 terminal locations 6332 | -6/Factory | Found Scatter Rocket Array 7239 | -6/Factory | Sucked down chute 7239 | -6/Factory | Entered Waste 7283 | -6/Waste | Spotted C-40 Crusher 7293 | -6/Waste | Spotted C-40 Crusher 7297 | -6/Waste | Destroyed C-40 Crusher 7304 | -6/Waste | Spotted C-40 Crusher 7309 | -6/Waste | Destroyed C-40 Crusher 7320 | -6/Waste | Destroyed C-40 Crusher 7326 | -6/Waste | Spotted C-40 Crusher 7341 | -6/Waste | Spotted C-40 Crusher 7350 | -6/Waste | Destroyed C-40 Crusher 7368 | -6/Waste | Spotted C-40 Crusher 7372 | -6/Waste | Destroyed C-40 Crusher 7414 | -6/Waste | Warlord forces began an assault 7786 | -6/Waste | Lost 3 allies 7800 | -6/Waste | Discovered new exit (range 12) 7853 | -6/Waste | Identified exit to Factory 7856 | -6/Waste | Entered Factory 7856 | -6/Factory | Accompanied by 16 allies 8236 | -6/Factory | Found Prototype Processor 8236 | -6/Factory | Identified Exp. Targeting Computer 8535 | -6/Factory | P-60 Hacker assimilated allied 7C-K7F(s) 8556 | -6/Factory | First assault squad dispatched 8561 | -6/Factory | Lost 3 allies 8605 | -6/Factory | Identified exit to Garrison 8614 | -6/Factory | Entered Garrison 8614 | -6/Garrison | Accompanied by 6 allies 8692 | -6/Garrison | Triggered checkpoint 8739 | -6/Garrison | Phase Generator disabled 8846 | -6/Garrison | Installed Relay Interface Framework 8982 | -6/Garrison | Lost 3 allies 9046 | -6/Garrison | Triggered checkpoint 9046 | -6/Garrison | Triggered checkpoint 9054 | -6/Garrison | Triggered checkpoint 9092 | -6/Garrison | Lost 3 allies 9133 | -6/Garrison | Destroyed 9 combat bots 9180 | -6/Garrison | Discovered new exit (range 12) 9189 | -6/Garrison | Identified exit to Factory 9200 | -6/Garrison | Triggered checkpoint 9249 | -6/Garrison | Lost 3 parts (1u2w) 9266 | -6/Garrison | Destroyed 7 combat bots 9426 | -6/Garrison | Discovered exit to Factory (range 49) 9426 | -6/Garrison | Discovered exit to Factory (range 56) 9426 | -6/Garrison | Discovered exit to Factory (range 19) 9566 | -6/Garrison | Triggered checkpoint 9709 | -6/Garrison | Spotted B-75 Beast 9815 | -6/Garrison | Entered Factory 9815 | -6/Factory | Accompanied by 1 ally 9874 | -6/Factory | Core integrity fell below 50% 9938 | -6/Factory | Identified exit to Garrison 9938 | -6/Factory | Entered Garrison 9982 | -6/Garrison | System corruption reached 10% 10056 | -6/Garrison | Destroyed 9 combat bots 10158 | -6/Garrison | Expanded RIF knowledge: Command Fork 10292 | -6/Garrison | Triggered checkpoint 10312 | -6/Garrison | Triggered checkpoint 10334 | -6/Garrison | Triggered checkpoint 10514 | -6/Garrison | Triggered checkpoint 10539 | -6/Garrison | Lost 3 allies 10594 | -6/Garrison | Triggered checkpoint 10698 | -6/Garrison | Triggered checkpoint 10717 | -6/Garrison | Spotted B-90 Cyclops 10732 | -6/Garrison | Spotted B-86 Titan 10748 | -6/Garrison | Destroyed B-90 Cyclops 10777 | -6/Garrison | Destroyed B-86 Titan 10806 | -6/Garrison | Lost 6 parts (2n2u2w) 10892 | -6/Garrison | Rewired B-86 Titan 11110 | -6/Garrison | Discovered exit to Factory (range 12) 11188 | -6/Garrison | Triggered checkpoint 11206 | -6/Garrison | Core integrity fell below 20% 11566 | -6/Garrison | Triggered checkpoint 11648 | -6/Garrison | Discovered exit to Factory (range 14) 11801 | -6/Garrison | Entered Factory 11801 | -5/Factory | Accompanied by 1 ally 11801 | -5/Factory | Evolved 2 slots: Propulsion x1, Utility x1 11859 | -5/Factory | Garrison activated, responded to threat 11889 | -5/Factory | Fabricated Variable Charge Gun? 11939 | -5/Factory | Destroyed 9 combat bots 12197 | -5/Factory | Discovered new exit (range 16) 12569 | -5/Factory | Spotted B-75 Beast 12599 | -5/Factory | Destroyed B-75 Beast 12701 | -5/Factory | First assault squad dispatched 12720 | -5/Factory | Incoming assault squad redirected 12793 | -5/Factory | Identified exit to Upper Caves 12793 | -5/Factory | Identified exit to Extension 13152 | -5/Factory | Entered Extension 13244 | -5/Extension | Rescued a captive Derelict 13245 | -5/Extension | Rescued a captive Derelict 13336 | -5/Extension | Rescued a captive Derelict 13338 | -5/Extension | Rescued a captive Derelict 13452 | -5/Extension | First assault squad dispatched 13469 | -5/Extension | Incoming assault squad redirected 13521 | -5/Extension | Lost 3 allies 13638 | -5/Extension | Lost 8 allies 13662 | -5/Extension | Rescued A7 13811 | -5/Extension | Rescued a captive Derelict 13858 | -5/Extension | Spotted B-75 Beast 13902 | -5/Extension | Destroyed 8 combat bots 13918 | -5/Extension | Spotted B-75 Beast 13942 | -5/Extension | Destroyed B-75 Beast 13976 | -5/Extension | Allies destroyed B-75 Beast 13980 | -5/Extension | Lost 5 allies 14479 | -5/Extension | Lost 6 allies 14676 | -5/Extension | Rescued a captive Derelict 14676 | -5/Extension | Rescued a captive Derelict 14708 | -5/Extension | High security lockdown imminent 14776 | -5/Extension | Rescued a captive Derelict 14777 | -5/Extension | Rescued a captive Derelict 14788 | -5/Extension | High security lockdown engaged 14828 | -5/Extension | P-70 Sage assimilated allied WC-ZM9(l) 15115 | -5/Extension | Destroyed 33 combat bots 15118 | -5/Extension | Discovered new exit (range 16) 15121 | -5/Extension | Discovered new exit (range 15) 15133 | -5/Extension | Core integrity fell below 50% 15149 | -5/Extension | Entered Cetus 15179 | -5/Cetus | Lost 6 parts (2p1n2u1w) 15315 | -5/Cetus | Spotted Cetus Guard 15316 | -5/Cetus | Spotted Cetus Guard 15318 | -5/Cetus | Spotted Cetus Guard 15319 | -5/Cetus | Spotted Cetus Guard 15330 | -5/Cetus | Destroyed Cetus Guard 15349 | -5/Cetus | Destroyed Cetus Guard 15366 | -5/Cetus | Core integrity fell below 20% 15379 | -5/Cetus | Destroyed Cetus Guard 15384 | -5/Cetus | Destroyed Cetus Guard 15411 | -5/Cetus | Lost 6 parts (1n2u3w) 15431 | -5/Cetus | Discovered new exit (range 15) 15452 | -5/Cetus | Build established: Mutant 15581 | -5/Cetus | Entered Archives 15660 | -5/Archives | Destroyed by Y-72 Warden with Quantum Rifle Last Messages --------------- crushing effect. 15626_ O-32 Director knocked back. 15634_ System corrupted: Substantial component data lost. 15638_ Archive Hub disabled. 15642_ Arm. Scrap Engine destroyed. 15642_ Scrap Engine core remains intact and functional. 15643_ Y-72 Warden suffers critical hit (Smash). 15645_ Penetrated by Slug. 15649_ Y-72 Warden suffers critical hit (Smash). 15654_ Flying NPT-VTOL Exoskeleton destroyed. 15654_ Scrap Engine damaged due to network destabilization (-9). 15657_ Slug penetrates Archive Hub. 15657_ Scrap Engine destroyed. 15660_ System corrupted: Hvy. Mace rejected. 15660_ Acquired Hvy. Mace. 15660_ Penetrated by Slug. 15660_ Slug penetrates Wall. Map ----- +----------------------------------------------------+ | | | | | | | ??????????????????????????????????? | | ??????????????????????????????????? | | ??????????????????????????????????? | | ??????????????????????????????????? | | ??????????????????????????????????? | | ??????????????????????????????????? | | ??????????????????????????????????? | | ??????????????????????????????????? | | ??????????????????????????????????? | | ??????????????????????????????????? | | ??????????????????????????????????? | | ??????????????????????????????????? | | ??????????????????????????????????? | | ??????????????????????????????????? | | ????????????????????"??"??????????? | | ???????????????????"" """#????????? | | ??????????????####"" " # #????? | | ??#############;; #???? | | ??# ! % "???? | | ??# "???? | | ??# Y ???? | | ??###;#+###;#"### ????? | | # ; @Y#""?? ????? | | ??# #"""?? ?????? | | ??# """""" ? ?????? | | ??#"""" """#"V ?? ?????? | | ??#""""""""""""" ? ??????? | | ??#"""""""""#"""?? ? ??????? | | ??#"""""""""#??????? ???????? | | ????#######?????????? ???????? | | ?????????????????????#"" ?????????? | | ??????????????????????????????????? | | ??????????????????????????????????? | | ??????????????????????????????????? | | ??????????????????????????????????? | | ??????????????????????????????????? | | ??????????????????????????????????? | | ??????????????????????????????????? | | ??????????????????????????????????? | | ??????????????????????????????????? | | ??????????????????????????????????? | | ??????????????????????????????????? | | ??????????????????????????????????? | | ??????????????????????????????????? | | ??????????????????????????????????? | | ??????????????????????????????????? | | ??????????????????????????????????? | +----------------------------------------------------+ Best States ------------- Heat Dissipation 78 Energy Generation 44 Energy Capacity 723 Matter Stores 300 Matter Capacity 300 Sight Range 16 Robot Scan Range 15 Terrain Scan Range 16 Terrain Scan Density 10 Base Temperature (-) 150 Armor Coverage 600 Power Shielding 66 Propulsion Shielding 33 Weapon Cycling 20 Evasion (%) 57 Targeting Accuracy 12 Recoil Reduction 3 Item Schematics ----------------- Combat Drone Bay | -7/Data Miner | Free Lgt. Regenerative Plating | -7/Data Miner | Free Cld. Cesium-ion Thruster | -7/Data Miner | Free Gravity Neutralizer | -7/Data Miner | Free Scatter Rocket Array | -7/Data Miner | Free Med. Armored Exoskeleton | -7/Data Miner | Free Imp. Thermal Shield | -7/Data Miner | Free Variable Charge Gun | -7/Data Miner | Free Imp. Thermal Generator | -7/Data Miner | Free Imp. Weapon Cycler | -7/Data Miner | Free Adv. Datajack | -7/Data Miner | Free Robot Schematics ------------------ C-17 Slicer | -7/Data Miner | Free R-10 Processor | -7/Data Miner | Free H-66 Slayer | -7/Data Miner | Free E-15 Imp | -7/Data Miner | Free A-15 Conveyor | -7/Data Miner | Free Y-54 Guardian | -7/Data Miner | Free Fabricated ------------ Variable Charge Gun | x2 | -5/Factory Repaired ---------- Nothing Studied --------- Power Maul | -7/Factory | Hacked Power Sword | -6/Factory | Hacked Variable Charge Gun | -5/Factory | Hacked Alien Tech Used ----------------- None Achievements -------------- Join The Dark Side Let Me Out Of Here You Will Be Upgraded Challenges ------------ None Game ------ Seed MetafieldMicrodissipatorJets Manual? 0 Play Time 03:46:30 Cumulative 164.1 hours Start 2026.03.25 @ 01:34:06 End 2026.03.26 @ 11:23:00 Sessions 5 Manual Loads 0 Difficulty Rogue Special Mode None Game No. 66 Rogue 66 Adventurer 0 Explorer 0 Win Type - Total 4 Types 2/0/0/2/0/0/0/0/0/0 Lore% 39 Gallery% 52 Achievement% 43 Wizard Run 0 Options --------- Layout 2 ASCII 0 Keyboard 1 Movement Numpad Keybinds 0 Fullscreen 2 Font 24/Smallcaps Map View 50x44 Zoom Use 0% Tactical HUD 1 Map Filters NONE Filters NONE Steam 1 RUN: cfc7fbbd-f084-4b7e-8382-1e97ee9d458a